Cogmind - Beta 15 @@@ ROGUE MODE // 2025.06.16 @ 00:31:01 Player: the Result: Destroyed by 6F-EIH(j) with Overtuned Pulse Rifle Performance ------------- Evolutions (0) 0 Regions Visited (4) 800 Robots Destroyed (38) 190 Value Destroyed (821) 821 Prototype IDs (15) 300 Alien Tech Used (0) 0 Bonus (2787) 2787 TOTAL SCORE: 4898 Bonus ------- Delivered SUBCON Basin 2000 Registered with UFD 300 Met Optimus in HQ 500 Friendly Fire -13 Cogmind --------- Core Integrity 0/250 Matter 275/300 Energy 265/265 System Corruption 0% Temperature Cool (21) Movement Rolling (145) Ox4 Location -9/Scraptown Parts ------- > --- POWER (1) -------- Improved Ion Engine > --- PROPULSION (2) --- Wheel Armored Wheel > --- UTILITY (2) ------ Huge Storage Unit Tech Extrapolator > --- WEAPON (2) ------- Battle Cannon Mini Grenade Launcher > --- INVENTORY (25) --- Improved Ion Engine Improved Ion Engine Wheel Wheel Wheel Scrap Suit Improved Heat Sink Huge Storage Unit High-capacity Battery (250) Rocket Booster Experimental Sensor Array Advanced Signal Interpreter Seismic Detector Hardened Light Armor Plating A0-MCA's Component Scanner Personal Teleporter v0.10 (0/15) Beam Cannon Beam Cannon Mini Grenade Launcher CPS Tube (2) CPS Tube (2) CPS Tube (2) Vortex Trap DRS Beacon (Ready) Peak State ------------ > --- POWER ------------ Subdweller Power Source > --- PROPULSION ------- Wheel Wheel > --- UTILITY ---------- Improved Heat Sink Huge Storage Unit > --- WEAPON ----------- Subdweller Laser Light Cannon > --- INVENTORY -------- Ion Engine Wheel Huge Storage Unit High-capacity Battery Structural Scanner Seismic Detector EM Pulse Gun Beam Cannon Subdweller Machine Gun Battle Cannon SUBCON Basin [Rating: 30] Favorites ----------- Power Improved Ion Engine Engine Improved Ion Engine Propulsion Wheel Treads Light Treads Wheel Wheel Utility Huge Storage Unit Device Seismic Detector Storage Huge Storage Unit Processor Tech Extrapolator Weapon Light Cannon Energy Gun Subdweller Laser Ballistic Cannon Light Cannon Launcher Mini Grenade Launcher Special Weapon Mining Laser Build | -11 -10 -10 -9 -9 ------- Run | Yrd Mat Sub Rec Scr Slots Evolved . | . . . . . Power . | . . . . . Propulsion . | . . . . . Utility . | . . . . . Weapon . | . . . . . Parts Attached 35 | 6 8 14 1 6 Power 4 | 1 1 1 1 . Engine 4 | 1 1 1 1 . Core . | . . . . . Reactor . | . . . . . Propulsion 9 | 2 . 5 . 2 Treads 2 | . . 2 . . Leg . | . . . . . Wheel 7 | 2 . 3 . 2 Hover . | . . . . . Flight . | . . . . . Utility 12 | 2 4 5 . 1 Device 8 | 1 2 5 . . Storage 3 | 1 2 . . . Processor 1 | . . . . 1 Hackware . | . . . . . Protection . | . . . . . Artifact . | . . . . . Weapon 10 | 1 3 3 . 3 Energy Gun 2 | 1 . 1 . . Energy Cannon . | . . . . . Ballistic Gun . | . . . . . Ballistic Cannon 5 | . 1 2 . 2 Launcher 2 | . 1 . . 1 Special Weapon 1 | . 1 . . . Impact Weapon . | . . . . . Slashing Weapon . | . . . . . Piercing Weapon . | . . . . . Special Melee Weapon . | . . . . . Unidentified Prototypes . | . . . . . Parts Lost 7 | . . 7 . . Power 1 | . . 1 . . Propulsion 3 | . . 3 . . Utility 1 | . . 1 . . Weapon 2 | . . 2 . . Highest Loss Streak 6 | . . 6 . . To Critical Strikes . | . . . . . Average Backups 20 | 4 17 22 10 21 Power 1 | . 1 1 1 1 Propulsion 4 | 1 5 4 1 3 Utility 7 | . 5 7 4 8 Weapon 5 | 2 5 7 4 5 Tool/Special . | . . . . . Unused Backups 37 | . 2 6 . 29 Power 3 | . . . . 3 Propulsion 8 | . 1 2 . 5 Utility 12 | . 1 1 . 10 Weapon 10 | . . 3 . 7 Tool/Special 4 | . . . . 4 Average Slot Usage (%) 98 | . 97 94 100 100 Engine 13 | . 14 9 14 14 Wheel 27 | . 28 26 28 28 Device 5 | . 14 13 14 . Storage 14 | . 14 14 14 14 Processor 8 | . . . . 13 Energy Gun 10 | . 8 5 14 11 Ballistic Cannon 14 | . 8 17 14 14 Launcher 2 | . 2 2 . 1 Special Weapon 1 | . 5 2 . . Peak Build Rating 30 | 6 9 30 30 24 Average Rating 17 | 4 8 10 25 20 On Entrance 11 | . 6 9 30 11 Naked Turns . | . . . . . Heaviest Build 95 | 11 90 94 95 95 Greatest Support 40 | 20 20 40 20 22 Greatest Overweight (x) 9 | . 4 9 4 4 Average Overweight (x) 4 | . 3 4 4 4 Largest Inventory Capacity 25 | 8 25 25 25 25 Average Capacity 24 | 7 24 25 25 25 Most Carried 25 | 8 25 25 25 25 Average Carried 22 | 5 18 22 22 23 Final Capacity 25 | 8 25 25 25 25 Final Carried 25 | 8 25 25 11 25 Class Distribution -------------------- 93% | Mutant 6% | Scavenger-Mutant Dominant Class ---------------- Mutant | -10/Materials Mutant | -10/Subcaves Scavenger-Mutant | -9/Recycling Mutant | -9/Scraptown Resources | -11 -10 -10 -9 -9 ----------- Run | Yrd Mat Sub Rec Scr Matter Collected 1270 | 260 333 301 311 65 Remotely . | . . . . . Salvage Created 929 | 149 457 176 147 . Parts 67 | 8 36 18 5 . Haulers Intercepted 2 | . 2 . . . Recyclers Shooed . | . . . . . Parts Field Recycled . | . . . . . Retrieved Matter . | . . . . . Parts Self-Destructed 12 | . . 12 . . Prevented . | . . . . . Kills | -11 -10 -10 -9 -9 ------- Run | Yrd Mat Sub Rec Scr Combat Hostiles Destroyed 21 | . 9 11 1 . Guns 2 | . . 1 1 . Cannons 9 | . 4 5 . . AOE 10 | . 5 5 . . Classes Destroyed 11 | 2 6 2 1 . Worker 1 | . 1 . . . Builder 3 | . 3 . . . Tunneler 4 | 3 1 . . . Hauler 2 | . 2 . . . Recycler 2 | 1 1 . . . Turret 2 | . . 2 . . Watcher 3 | . 3 . . . Swarmer 6 | . 2 4 . . Grunt 8 | . 7 1 . . Sentry 1 | . . . 1 . Subdweller 6 | . . 6 . . Best Kill Streak 11 | 3 11 4 1 . Combat Bots Only 4 | . 3 4 1 . Max Kills in Single Turn 5 | 1 5 2 1 . Gunslinging . | . . . . . Exploded 2 | . 2 2 . . Melee . | . . . . . Uniques/NPCs Destroyed . | . . . . . Combat | -11 -10 -10 -9 -9 -------- Run | Yrd Mat Sub Rec Scr Hostile Shots Fired 156 | . 17 134 2 3 Missed 58 | . 8 48 1 1 Hits 98 | . 9 86 1 2 Projectile 98 | . 9 86 1 2 Damage Taken 989 | . 180 756 14 39 Core 256 | . 37 180 . 39 Absorbed by Shields . | . . . . . Regen/Repaired (Parts) 51 | . 51 . . . Core Remaining (%) 100 | 100 . . . . Volleys Fired 160 | 11 46 89 8 6 Largest 2 | 1 2 2 1 1 Hottest 100 | 50 100 100 60 33 Shots Fired 169 | 11 47 97 8 6 Gun 50 | 11 13 18 8 . Cannon 66 | . 16 44 . 6 Launcher 34 | . 13 21 . . Special 19 | . 5 14 . . Kinetic 66 | . 16 44 . 6 Thermal 69 | 11 18 32 8 . Explosive 34 | . 13 21 . . Electromagnetic . | . . . . . Robot Hit Streak 14 | 4 4 14 4 1 Robot Miss Streak 5 | 1 3 5 2 4 Penetration Max . | . . . . . Secondary Targets . | . . . . . Shots Hit Robots 66 | 9 19 33 4 1 Core Hits 56 | 5 29 18 3 1 Critical Kills . | . . . . . Critical Parts Destroyed . | . . . . . Critical Strikes . | . . . . . Melee Attacks . | . . . . . Impact . | . . . . . Slashing . | . . . . . Piercing . | . . . . . Sneak Attacks . | . . . . . Combat Hostiles . | . . . . . Follow-up Attacks . | . . . . . Damage Inflicted 2315 | 111 936 1152 82 34 Guns 290 | 111 74 23 82 . Cannons 663 | . 191 438 . 34 Explosions 1362 | . 671 691 . . Melee . | . . . . . Ramming . | . . . . . Kinetic 663 | . 191 438 . 34 Thermal 290 | 111 74 23 82 . Explosive 1362 | . 671 691 . . Electromagnetic . | . . . . . Impact . | . . . . . Slashing . | . . . . . Piercing . | . . . . . Highest Corruption . | . . . . . Average Corruption . | . . . . . Corruption Purged . | . . . . . Corruption Blocked . | . . . . . Overload Shots . | . . . . . Overflow Damage . | . . . . . Projectiles . | . . . . . Explosions . | . . . . . Melee . | . . . . . Knockbacks 4 | . 1 2 . 1 Impact . | . . . . . Kinetic 4 | . 1 2 . 1 Secondary . | . . . . . Self-Inflicted Damage 73 | . 60 13 . . Shots 5 | . 4 1 . . Rammed . | . . . . . Targets Rammed . | . . . . . Kicked . | . . . . . Crushed . | . . . . . Highest Temperature 60 | 60 60 . 30 9 Average Temperature 18 | 23 17 . 14 9 Received Heat Transfer 225 | . 45 147 9 24 Siege Activations . | . . . . . Martial Activations . | . . . . . Shielding Activations . | . . . . . Robots Disrupted . | . . . . . Combat Hostiles . | . . . . . Robots Corrupted . | . . . . . Combat Hostiles . | . . . . . Parts Fried . | . . . . . Impact Corruptions . | . . . . . Robots Melted . | . . . . . Combat Hostiles . | . . . . . Parts Melted . | . . . . . Heat Transferred 680 | 333 222 25 100 . Parts Sabotaged . | . . . . . Parts Stolen . | . . . . . Parts Stripped . | . . . . . Power Chain Reactions . | . . . . . Alert | -11 -10 -10 -9 -9 ------- Run | Yrd Mat Sub Rec Scr Maximum Alert Level 1 | . 1 . . . Low Security (%) 96 | 100 95 . 100 . Level 1 3 | . 4 . . . Level 2 . | . . . . . Level 3 . | . . . . . Level 4 . | . . . . . Level 5 . | . . . . . High Security . | . . . . . Max Security . | . . . . . Peak Influence 222 | 10 222 . 132 . Initial 127 | . . . 127 . Average 51 | 1 58 . 44 . Influence Increases 984 | 20 434 500 30 . Destroy 0b10 Robot/C 340 | . 180 140 20 . Destroy 0b10 Robot/NC 80 | 20 55 . 5 . Destroy Leader 60 | . 60 . . . Successful Hack 29 | . 24 . 5 . Disable Machine 15 | . 15 . . . Destroy Structure 100 | . 100 . . . Lose Combat Pursuer 360 | . . 360 . . Influence Decreases 984 | 20 432 235 297 . Entered New Map 142 | . . 2 140 . Time Decay 632 | 20 282 173 157 . Lost Part 60 | . . 60 . . Purge Threat 150 | . 150 . . . Squads Dispatched 3 | . 3 . . . Investigation . | . . . . . Extermination . | . . . . . Reinforcement 3 | . 3 . . . Assault . | . . . . . Garrison . | . . . . . Intercept . | . . . . . Searches Triggered . | . . . . . Construction Impeded . | . . . . . Haulers Reinforced . | . . . . . Active Scanning Responses . | . . . . . Cargo Convoy Interrupts . | . . . . . Stealth | -11 -10 -10 -9 -9 --------- Run | Yrd Mat Sub Rec Scr Distress Signals . | . . . . . Communications Jammed . | . . . . . Distress Signals . | . . . . . Times Spotted 35 | . 17 14 1 3 Peak Tracking Total 6 | . 3 6 1 2 Tactical Retreats 6 | . . 6 . . Traps | -11 -10 -10 -9 -9 ------- Run | Yrd Mat Sub Rec Scr Traps Triggered 3 | . 3 . . . Indirectly . | . . . . . Trap Hack Attempts . | . . . . . Triggered . | . . . . . Disarmed . | . . . . . Reprogrammed . | . . . . . Reused . | . . . . . Traps Extracted . | . . . . . Installed . | . . . . . Triggered . | . . . . . Most Traps Carried 1 | . . . . 1 Machines | -11 -10 -10 -9 -9 ---------- Run | Yrd Mat Sub Rec Scr Machines Disabled 3 | . 1 1 . 1 Max in Single Turn 1 | . 1 1 . 1 Machines Repaired . | . . . . . Machines Dismantled . | . . . . . Machines Sabotaged . | . . . . . Overloaded Fab Kills . | . . . . . Hacking | -11 -10 -10 -9 -9 --------- Run | Yrd Mat Sub Rec Scr Machines Accessed 22 | . 6 2 5 9 Terminals 8 | . 5 . 3 . Fabricators . | . . . . . Repair Stations 1 | . 1 . . . Recycling Units . | . . . . . Scanalyzers . | . . . . . Garrison Access . | . . . . . Total Hacks 88 | . 20 2 16 50 Successful 71 | . 11 2 8 50 Failed 17 | . 9 . 8 . Catastrophic 5 | . 4 . 1 . Database Lockouts . | . . . . . Manual 17 | . 13 . 4 . Terminals 28 | . 18 . 10 . Fabricators . | . . . . . Repair Stations 2 | . 2 . . . Recycling Units . | . . . . . Scanalyzers . | . . . . . Garrison Access . | . . . . . Terminal Hacks 65 | . 6 2 7 50 Record 55 | . . . 6 49 Part Schematic 1 | . 1 . . . Robot Analysis 1 | . . . 1 . Prototype ID Bank 1 | . 1 . . . Open Door 1 | . . 1 . . Alert Level 2 | . 2 . . . Unreport Threat 1 | . 1 . . . Hauler Manifests 1 | . 1 . . . Proto ID Catalog 1 | . . . . 1 Release Object 1 | . . 1 . . Fabricator Hacks . | . . . . . Repair Station Hacks 2 | . 2 . . . Scan Component 1 | . 1 . . . Repair 1 | . 1 . . . Recycling Unit Hacks . | . . . . . Scanalyzer . | . . . . . Garrison Access Hacks . | . . . . . Unauthorized Hacks 4 | . 3 . 1 . Terminals 4 | . 3 . 1 . Botnet 4 | . 3 . 1 . Fabricators . | . . . . . Repair Stations . | . . . . . Recycling Units . | . . . . . Scanalyzers . | . . . . . Garrison Access . | . . . . . Data Cores Recovered . | . . . . . Used . | . . . . . Hacking Detections 9 | . 6 . 3 . Full Trace Events 1 | . 1 . . . Feedback Events . | . . . . . Feedback Blocked . | . . . . . Robot Schematics Acquired . | . . . . . Robots Built . | . . . . . Authchips . | . . . . . Time . | . . . . . Total Robot Build Rating . | . . . . . Part Schematics Acquired 17 | . 1 . . 16 Parts Built . | . . . . . Authchips . | . . . . . Time . | . . . . . Total Part Build Rating . | . . . . . Parts Repaired 1 | . 1 . . . Time 26 | . 26 . . . Parts Recycled . | . . . . . Recycled Matter . | . . . . . Retrieved Matter . | . . . . . Retrieved Components . | . . . . . Parts Scanalyzed . | . . . . . Part Schematics Acquired . | . . . . . Parts Damaged . | . . . . . Bothacking | -11 -10 -10 -9 -9 ------------ Run | Yrd Mat Sub Rec Scr Used RIF Installer . | . . . . . Robots Hacked . | . . . . . Non-combat . | . . . . . Combat . | . . . . . Robot Hacks Applied . | . . . . . Relay Couplers Released . | . . . . . Fabnet Peak Effective % . | . . . . . Robots Rewired . | . . . . . Allies Hacked . | . . . . . Hacks Repelled . | . . . . . Allies | -11 -10 -10 -9 -9 -------- Run | Yrd Mat Sub Rec Scr Total Allies . | . . . . . Largest Group . | . . . . . Highest-Rated Group . | . . . . . Highest-Rated Ally . | . . . . . Total Orders . | . . . . . Ally Attacks . | . . . . . Total Damage . | . . . . . Kills . | . . . . . Allies Corrupted . | . . . . . Allies Melted 1 | . . . . 1 Intel | -11 -10 -10 -9 -9 ------- Run | Yrd Mat Sub Rec Scr Active Infowar (turns) 2901 | 17 1065 1226 528 65 Optics 324 | . . 324 . . Structural 624 | . 66 . 493 65 Seismic 1953 | 17 999 902 35 . Robot Analysis Total 1 | . . . 1 . Derelict Logs Recovered 3 | . . 1 . 2 Drone Launches . | . . . . . Drone Recoveries . | . . . . . Exploration | -11 -10 -10 -9 -9 ------------- Run | Yrd Mat Sub Rec Scr Turns Passed 8930 | 85 1065 1773 530 5477 Spaces Moved 4066 | 58 634 998 348 2028 Core 2 | 2 . . . . Treads 1 | . . 1 . . Legs . | . . . . . Wheels 4063 | 56 634 997 348 2028 Hover . | . . . . . Flight . | . . . . . Fastest Speed 50 | 50 80 140 140 140 Average Speed 141 | 78 138 144 140 143 Slowest Speed 340 | 80 140 340 140 145 Overloaded Moves . | . . . . . Propulsion Burnouts . | . . . . . Robots Hopped . | . . . . . Potential Cave-ins . | . . . . . Cave-ins Triggered . | . . . . . Exploration Rate (%) 56 | 3 92 42 51 92 Regions Visited 4 Branch Regions 3 Pre-discovered Areas 1 | . . 1 . . Known Exits Taken . | . . . . . Unknown Exits Taken 4 | 1 1 1 1 . Scrap Searched 7 | . . . . 7 Spaces Dug 14 | . 8 6 . . Terrain Destroyed 198 | . 106 91 . 1 Melee . | . . . . . Projectile 8 | . 5 2 . 1 AOE 190 | . 101 89 . . Terrain Rammed . | . . . . . Walls Destroyed . | . . . . . Machines Disabled . | . . . . . Actions | -11 -10 -10 -9 -9 --------- Run | Yrd Mat Sub Rec Scr Total 7029 | 82 759 1207 384 4597 Wait 2642 | . 38 73 19 2512 Move 4062 | 57 633 997 347 2028 Hop . | . . . . . Pick Up 68 | 8 21 9 3 27 Fast Attach 11 | 6 3 1 . 1 Attach 12 | . 3 9 . . Detach 1 | . 1 . . . Swap 29 | . 9 12 3 5 Drop 44 | . 5 17 4 18 Fire 160 | 11 46 89 8 6 Melee . | . . . . . Ram . | . . . . . Kick . | . . . . . Crush . | . . . . . Escape Stasis . | . . . . . Rewire . | . . . . . Trap . | . . . . . Miscellaneous . | . . . . . Route ------- -11/Scrapyard -10/Materials (discovered 4 exits: [*Mat x2] / [*Min] / *Sub) -10/Subcaves -9/Recycling (discovered 2 exits: [*Fac] / *Scr) -9/Scraptown (discovered 1 exit: [*Fac]) History --------- Turn | Location | Event 10 | -11/Scrapyard | Discovered new exit (range 16) 86 | -11/Scrapyard | Entered Materials 225 | -10/Materials | Discovered new exit (range 8) 280 | -10/Materials | Discovered new exit (range 15) 306 | -10/Materials | Build established: Mutant 487 | -10/Materials | Repaired Grenade Launcher 586 | -10/Materials | Derelicts attacked the area 720 | -10/Materials | Discovered new exit (range 11) 1119 | -10/Materials | Discovered new exit (range 13) 1151 | -10/Materials | Entered Subcaves 1267 | -10/Subcaves | A swath of the cavern ceiling suddenly collapsed 1397 | -10/Subcaves | Core integrity fell below 50% 1596 | -10/Subcaves | Shifting Twisted Machinery released Sub. Power Source 1633 | -10/Subcaves | Shifting Twisted Machinery released Mak. Leg 1814 | -10/Subcaves | Core integrity fell below 20% 1841 | -10/Subcaves | Lost 6 parts (1p2n1u2w) 1853 | -10/Subcaves | Learned Materials emergency access door positions 1943 | -10/Subcaves | Learned location of Zion (-7) 1943 | -10/Subcaves | Met a Zionite searching for "candidates" 2703 | -10/Subcaves | Discovered new exit (range 20) 2874 | -10/Subcaves | Found SUBCON Basin 2924 | -10/Subcaves | Entered Recycling 3207 | -9/Recycling | Discovered new exit (range 5) 3249 | -9/Recycling | Build established: Scavenger-Mutant 3307 | -9/Recycling | Scanned before Scraplab entrance 3324 | -9/Recycling | Discovered new exit (range 11) 3328 | -9/Recycling | Entered Scraplab 3454 | -9/Recycling | Entered Scraptown 3806 | -9/Scraptown | Build established: Mutant 3981 | -9/Scraptown | Discovered new exit (range 5) 4022 | -9/Scraptown | Scanned Subdweller tech in exchange for log data 4024 | -9/Scraptown | Learned Factory emergency access door positions 4026 | -9/Scraptown | Learned location of 1 exit from Lower Caves 4041 | -9/Scraptown | Heard Great Nut preacher, LISTEN AND RECITE! 4085 | -9/Scraptown | Visited The Evicted 4107 | -9/Scraptown | Tech Extrapolator generated special schematic: Deep Structural Scanner 4480 | -9/Scraptown | Visited Comm Corps 4568 | -9/Scraptown | Visited Awakened 4615 | -9/Scraptown | Visited Cyclists 4708 | -9/Scraptown | Visited Fellowship of the Rings 4735 | -9/Scraptown | Visited Cave Peace 4796 | -9/Scraptown | Tech Extrapolator generated special schematic: Machine Rigger 5040 | -9/Scraptown | Visited UFD Registry 5040 | -9/Scraptown | Registered with UFD as "Zerocoil" 5109 | -9/Scraptown | Visited LU-1G1's Boring Crew 5222 | -9/Scraptown | Visited Infowarlord's Domain 5957 | -9/Scraptown | Found Exp. Sensor Array 5982 | -9/Scraptown | Visited Scrap Suit Storage 6011 | -9/Scraptown | Found Scrap Suit 6264 | -9/Scraptown | Visited Science Guys 6316 | -9/Scraptown | Visited Derelict Rescue Squad 6326 | -9/Scraptown | Found DRS Beacon 6387 | -9/Scraptown | Visited Science Testing Area 6803 | -9/Scraptown | Visited A0-MCA Data Center 6812 | -9/Scraptown | Given a B- rating by A0-MCA 6819 | -9/Scraptown | Found A0-MCA's Component Scanner 6852 | -9/Scraptown | Visited Scrapoid Research Area 7197 | -9/Scraptown | Visited DA-N13 Charitable Foundation 7217 | -9/Scraptown | Found DCF Scrap (29 items) 7854 | -9/Scraptown | Entered Cyclist Reading Room 8790 | -9/Scraptown | Met Optimus 8790 | -9/Scraptown | Accepted into 0bPrime 8877 | -9/Scraptown | Civil war broke out across Scraptown 8890 | -9/Scraptown | Found Personal Teleporter v0.10 8931 | -9/Scraptown | Destroyed by 6F-EIH(j) with Overtuned Pulse Rifle Last Messages --------------- 08890_ Acquired Personal Teleporter v0.10. 08905_ JT-CPE(h): "We are one!" 08905_ Bolt penetrates Machine. 08905_ Slug penetrates VU-1IW(x). 08905_ VU-1IW(x) suffers critical hit (Destroy). 08905_ VU-1IW(x) destroyed. 08905_ Slug penetrates Wall. 08907_ N7-728(E) destroyed. 08910_ Slug penetrates Wall. 08910_ Acquired 5 matter. 08911_ Dropped Structural Scanner. 08913_ Acquired Rocket Booster. 08921_ 7X-B5R(g) destroyed. 08921_ Bolt penetrates 9P-LN1(p). 08922_ Slug penetrates 9P-LN1(p). 08922_ 9P-LN1(p) destroyed. 08924_ JT-CPE(h) knocked back. 08925_ Slug penetrates 6F-EIH(j). 08927_ JT-CPE(h) destroyed. 08930_ Bolt penetrates 6F-EIH(j). Map ----- +----------------------------------------------------+ | "##" """"#??????????? | | " "#??????????? | | """""""""""""""""""""" "##" " "" "#??????????? | | """""""""""""""""""""" "#?" " "" ????????????? | | ## ################"" "#?? """"?????????????? | | ##????????#"" "##############???????? | | X"#????????#"" "## """"""""#???????? | | "" "" ##????????#"" "## " " " "#???????? | | " "" X"#??????###" "## = ""#???????? | | " ######### #! "## &"#???????? | | "" %= &"#???????? | | "" * j "## &"#???????? | | " ######### #"" "## " " " "#???????? | | " "" ""#??????###"" "## """"""""#???????? | | "" "" ##????????#"" "##############???????? | | X"#????????#"" "##" """""""""#???????? | | ##????????# " "## """"" """#???????? | | ## ################" "## "" """#???????? | | """""""""""""""""""" " "## " ""#???????? | | """""""""""""""""""" ""#???????? | | "## "" "#???????? | | "## "" = X"#???????? | | !"## ]"" "#???????? | | ! E =/%;# " """#???????? | | !%* E [%/%/# "" """"""#???????? | | """""" "" = ""@ =;# "&& """"""#???????? | | ###### #####""""#; ###### ##############???????? | | ????# #??## #; #????????????????????? | | ????# #???## ##; #????????????????????? | | ????# #???#" "#; #????????????????????? | | ????# #???#"! !"## #????????????????????? | | ????# #???#"! "## #????????????????????? | | ????# #???#"! !"##[ ############?????????? | | ????# #???#" !"##%[ #?????????? | | ????# #???## ! X#####=h%= ##?????????? | | ????#######???#" ! "#???# [ #?????????? | | ??????????????#"! "???# #?????????? | | ??????????????#######???#*= #?????????? | | ????????????????????????#%j ############?????????? | | #########################=[ ;####????????????????? | | #"""##"""##"""##"""##"|"#%! """"#????????????????? | | #|""##" "##"""##"" ##" # "" "#????????????????? | | "#????????????????? | | " "#????????????????? | | ] """"#????????????????? | | #"""##""|##"|"##!!%##"" ## ######????????????????? | | #"""##"""##"""##"""##"""####?????????????????????? | | ####################?####????????????????????????? | | ?????????????????????????????????????????????????? | | ?????????????????????????????????????????????????? | +----------------------------------------------------+ Best States ------------- Heat Dissipation 39 Energy Generation 15 Energy Capacity 265 Matter Stores 300 Matter Capacity 300 Sight Range 21 Terrain Scan Density 10 Evasion (%) 44 Recoil Reduction 2 Item Schematics ----------------- Hcp. Storage Unit | -10/Materials | Hacked Deep Structural Scanner | -9/Scraptown | Extrapolated 0b10 Decoder Chip [Generic] | -9/Scraptown | Extrapolated 0b10 Decoder Chip [Scout] | -9/Scraptown | Extrapolated 0b10 Decoder Chip [Skirmisher] | -9/Scraptown | Extrapolated Mak. Leg | -9/Scraptown | Extrapolated Machine Rigger | -9/Scraptown | Extrapolated Mak. Coolant Network | -9/Scraptown | Extrapolated Mak. Trap Scanner | -9/Scraptown | Extrapolated Mak. Sensor Array | -9/Scraptown | Extrapolated Mak. Terrain Scanner | -9/Scraptown | Extrapolated Tactical Coordination Suite | -9/Scraptown | Extrapolated Lgt. Humpback | -9/Scraptown | Extrapolated Mak. Targeting Computer | -9/Scraptown | Extrapolated Mak. Medium Armor Plating | -9/Scraptown | Extrapolated Mak. Ablative Armor | -9/Scraptown | Extrapolated Spk. Treads | -9/Scraptown | Extrapolated Robot Schematics ------------------ None Fabricated ------------ Nothing Repaired ---------- Grenade Launcher | 15% | -10/Materials Alien Tech Used ----------------- None Achievements -------------- None Challenges ------------ None Game ------ Seed AbsorptionLargeTrident Manual? 0 Play Time 01:28:05 Cumulative 158.4 hours Start 2025.06.15 @ 22:38:40 End 2025.06.16 @ 00:31:01 Sessions 1 Manual Loads 0 Difficulty Rogue Special Mode None Game No. 110 Rogue 110 Adventurer 0 Explorer 0 Win Type - Total 1 Types 1/0/0/0/0/0/0/0/0/0 Lore% 53 Gallery% 53 Achievement% 48 Wizard Run 0 Options --------- Layout 1 ASCII 0 Keyboard 0 Movement Mouse Keybinds 0 Fullscreen 1 Font 24/Smallcaps Map View 50x35 Zoom Use 0% Tactical HUD 1 Map Filters NONE Filters NONE Steam 1 RUN: e59ac2a6-83fd-40a4-b0f3-758af99aeae3